bitfinex-derivatives/quotes_ETHF0:USTF0_20250607
["timestamp","ask_amount","ask_price","bid_price","bid_amount"]
[1749311062418,1.13668307,2514.8,2514.7,4.00268]
[1749311062619,4.687,2515.1,2515.0,0.79479]
[1749311062825,5.82326287,2515.1,2515.0,0.79479]
[1749311063418,6.61801287,2515.1,2515.0,0.79479]
[1749311063820,5.82326287,2515.1,2515.0,0.79479]
[1749311064227,0.00596184,2515.2,2515.1,0.79475]
[1749311064528,1.14119105,2515.2,2515.1,0.79475]
[1749311065121,0.00596184,2515.2,2515.1,0.79475]
[1749311065518,0.80068184,2515.2,2515.1,0.79475]
[1749311066426,0.79475,2515.1,2515.0,3.2078]
[1749311067422,0.79475,2515.1,2515.0,4.00259]
[1749311067929,0.79475,2515.1,2515.0,3.2078]
[1749311069130,0.79475,2515.1,2515.0,4.00259]
[1749311069323,0.79475,2515.1,2515.0,3.2078]
[1749311071429,0.79475,2515.1,2515.0,4.00259]
[1749311071729,0.79475,2515.1,2515.0,3.2078]
[1749311071928,0.80069184,2515.2,2515.1,0.79475]
[1749311072330,0.79475,2515.1,2515.0,4.00257]
[1749311072726,0.00596184,2515.2,2515.0,4.00257]
[1749311072727,0.80069184,2515.2,2515.1,0.79475]
[1749311074628,0.79475,2515.1,2515.0,3.2078]
[1749311075427,0.79475,2515.1,2515.0,4.00259]
[1749311075632,0.80071184,2515.2,2515.1,0.79475]
[1749311077634,0.79475,2515.1,2515.0,4.07148172]
[1749311078034,0.80071184,2515.2,2515.1,0.79475]
[1749311079033,0.80071184,2515.2,2515.1,2.06295]
[1749311080937,0.80071184,2515.2,2515.1,2.73605]
[1749311081740,0.79461,2515.6,2515.5,0.79463]
[1749311082535,0.79461,2515.6,2515.5,1.46773]
[1749311084543,0.79461,2515.6,2515.5,0.6731]
[1749311091146,0.79461,2515.6,2515.5,0.74201172]
[1749311091446,1.95069155,2515.6,2515.5,0.74201172]
[1749311093847,1.95069155,2515.6,2515.5,0.06891172]
[1749311095348,2.64339155,2515.6,2515.5,0.06891172]
[1749311102350,3.94499155,2515.6,2515.5,0.06891172]
[1749311105353,3.94542997,2515.6,2515.5,0.06891172]
[1749311109349,8.94542997,2515.6,2515.5,0.06891172]
[1749311110455,3.94542997,2515.6,2515.5,0.06891172]
[1749311110858,2.64382997,2515.6,2515.5,0.06891172]
[1749311111065,1.95112997,2515.6,2515.5,0.06891172]
[1749311111254,1.15651997,2515.6,2515.5,0.86354172]
[1749311111753,1.95111997,2515.6,2515.5,0.86354172]
[1749311111960,1.95111997,2515.6,2515.5,1.54104172]
[1749311112253,1.15651997,2515.6,2515.5,1.54104172]
[1749311112461,1.15651997,2515.6,2515.5,2.80024172]
[1749311114255,0.00596184,2515.8,2515.7,0.79456]
[1749311114461,0.00596184,2515.8,2515.7,4.00236]
[1749311114959,0.00596184,2515.8,2515.7,5.28826]
[1749311118061,0.79439,2516.3,2516.2,0.79441]
[1749311118558,1.97962249,2516.3,2516.2,0.79441]
[1749311119061,0.79441,2516.2,2516.1,4.00222]
[1749311119353,0.80028184,2516.5,2516.4,0.79434]
[1749311119558,1.19126457,2516.5,2516.4,4.00214]
[1749311119762,0.00596184,2516.5,2516.4,4.00214]
[1749311120160,0.80027184,2516.5,2516.4,4.00214]
[1749311120460,0.80027184,2516.5,2516.4,3.2078]
[1749311121060,0.80027184,2516.5,2516.2,2.13558]
[1749311121061,0.79434,2516.4,2516.2,1.3412]
[1749311121263,0.79434,2516.4,2516.3,0.79437]
[1749311123165,0.79437,2516.3,2516.2,2.13558]
[1749311123362,0.79436,2516.4,2516.3,0.79437]
[1749311124061,0.79441,2516.2,2516.1,3.2078]
[1749311124266,0.79447,2516.0,2515.9,0.6743]
[1749311126462,0.79447,2516.0,2515.9,1.4688]
[1749311127063,0.79447,2516.0,2515.9,0.6743]
[1749311127368,0.79447,2516.0,2515.9,1.4688]
[1749311129567,0.79446,2516.1,2516.0,0.79446]
[1749311130172,0.00596184,2516.5,2516.0,3.2078]
[1749311130359,0.00596184,2516.5,2516.3,3.2078]
[1749311130360,0.79434,2516.4,2516.3,3.2078]
[1749311130872,0.79434,2516.4,2516.3,4.00217]
[1749311131671,0.79434,2516.4,2516.3,0.79437]
[1749311133559,0.80030184,2516.5,2516.4,0.79434]
[1749311134372,0.80030184,2516.5,2516.3,0.79435]
[1749311134674,0.80030184,2516.5,2516.4,0.79434]
[1749311134872,0.79435,2516.4,2516.3,0.79435]
[1749311135476,0.80029184,2516.5,2516.4,0.79434]
[1749311137076,0.79434,2516.4,2516.3,0.86327172]
[1749311139673,0.80029184,2516.5,2516.4,0.79434]
[1749311139875,1.98650337,2516.5,2516.4,0.79434]
[1749311140077,1.19217337,2516.5,2516.4,0.79434]
[1749311140278,1.98648337,2516.5,2516.4,1.44884]
[1749311141179,1.19217337,2516.5,2516.4,1.44884]
[1749311142574,1.98648337,2516.5,2516.4,1.44884]
[1749311145381,1.98648337,2516.5,2516.4,0.79434]
[1749311146579,1.19217337,2516.5,2516.4,0.79434]
[1749311148881,1.19217337,2516.5,2516.4,2.75134]
[1749311149375,0.00596184,2516.5,2516.4,2.75134]
[1749311150980,0.00596184,2516.5,2516.4,2.82025172]
[1749311151180,0.00596184,2516.5,2516.4,6.02805172]
[1749311156878,0.00596184,2516.5,2516.4,4.07105172]
[1749311157079,0.80027184,2516.5,2516.4,4.07105172]
[1749311157374,0.00596184,2516.5,2516.4,4.07105172]
[1749311157886,1.19381508,2516.5,2516.4,4.07105172]
[1749311161083,1.98812508,2516.5,2516.4,3.27671172]
[1749311161389,8.63752508,2516.5,2516.4,0.06891172]
[1749311164390,3.17121508,2516.5,2516.4,0.86325172]
[1749311164592,1.86481508,2516.5,2516.4,4.07105172]
[1749311164788,0.00596184,2516.5,2516.4,4.07105172]
[1749311165991,1.3317,2517.1,2517.0,0.79415]
[1749311166191,2.51494048,2517.1,2517.0,0.79415]
[1749311166488,2.51494048,2517.1,2516.9,4.00197]
[1749311166685,1.97739048,2517.0,2516.9,4.00197]
[1749311166888,0.79419,2516.9,2516.8,1.4859]
[1749311167088,1.97743048,2516.9,2516.8,0.7942]
[1749311167278,0.79425,2516.7,2516.6,3.21376184]
[1749311167481,0.79425,2516.7,2516.6,0.00596184]
[1749311167682,1.97738442,2516.7,2516.6,0.00596184]
[1749311167990,4.00398442,2516.7,2516.6,0.00596184]
[1749311174491,4.00398442,2516.7,2516.6,0.80024184]
[1749311174697,4.00398442,2516.7,2516.6,0.00596184]
[1749311176797,8.67498442,2516.7,2516.6,0.00596184]
[1749311180597,6.64838442,2516.7,2516.6,0.07487356]
[1749311185408,1.97738442,2516.7,2516.6,0.07487356]
[1749311185706,6.64838442,2516.7,2516.6,0.07487356]
[1749311188708,6.64838442,2516.7,2516.6,0.75537356]
[1749311189108,5.85413442,2516.7,2516.6,1.54965356]
[1749311189408,6.64838442,2516.7,2516.6,0.75537356]
[1749311189802,6.64697966,2516.7,2516.6,0.75537356]
[1749311190306,6.64697966,2516.7,2516.6,0.07487356]
[1749311190709,8.58297966,2516.7,2516.6,0.07487356]
[1749311192514,0.79441,2516.2,2516.1,0.6779]
[1749311192807,0.79441,2516.2,2516.1,1.47234]
[1749311194603,0.79436,2516.4,2516.3,0.79434]
[1749311195008,1.18161546,2516.4,2516.3,0.79434]
[1749311195813,1.18161546,2516.4,2516.3,4.00214]
[1749311196209,1.97595546,2516.4,2516.3,4.00214]
[1749311196411,1.97595546,2516.4,2516.2,1.2765]
[1749311196412,0.79438,2516.3,2516.2,2.07088]
[1749311196722,0.79441,2516.2,2516.1,0.6779]
[1749311196916,2.65762546,2516.2,2516.1,0.6779]
[1749311198516,0.79447,2516.0,2515.9,0.00596184]
[1749311198914,1.97608546,2516.0,2515.9,0.00596184]
[1749311199116,10.18388546,2516.0,2515.9,0.00596184]
[1749311199717,0.79463,2515.5,2515.4,1.2998]
[1749311200222,1.97624546,2515.5,2515.4,1.2998]
[1749311200625,1.97624546,2515.5,2515.4,0.6362]
[1749311201526,0.79463,2515.5,2515.4,0.6362]
[1749311202024,0.80054184,2515.7,2515.5,0.79463]
[1749311202226,6.64607558,2515.6,2515.5,0.79463]
[1749311203727,5.4666,2515.6,2515.5,0.79463]
[1749311203927,0.79463,2515.5,2515.4,1.43084]
[1749311205031,5.46662,2515.6,2515.4,1.43084]
[1749311205426,4.672,2515.6,2515.5,0.79463]
[1749311205831,5.46662,2515.6,2515.4,1.43084]
[1749311206028,0.00596184,2515.7,2515.4,0.6362]
[1749311206229,4.672,2515.6,2515.5,2.11843]
[1749311207230,0.7946,2515.6,2515.5,2.11843]
[1749311209036,0.00596184,2515.7,2515.6,0.7946]
[1749311209233,0.00596184,2515.7,2515.6,2.857]
[1749311218036,0.00596184,2515.7,2515.6,1.4657]
[1749311220640,0.7946,2515.6,2515.5,0.86352172]
[1749311220839,0.7946,2515.6,2515.5,0.06891172]
[1749311221043,1.4639,2515.6,2515.5,0.06891172]
[1749311221540,1.4639,2515.6,2515.5,0.86354172]
[1749311222440,1.4639,2515.6,2515.5,0.06891172]
[1749311222941,2.8048,2515.6,2515.5,0.06891172]
[1749311223234,3.9832435,2515.6,2515.5,0.06891172]
[1749311225135,0.79469,2515.3,2515.2,0.00596184]
[1749311225338,5.46669,2515.3,2515.2,0.00596184]
[1749311226638,6.64533093,2515.3,2515.2,0.80068184]
[1749311226836,1.17864093,2515.3,2515.2,0.80068184]
[1749311227040,5.46667,2515.4,2515.3,0.79469]
[1749311227339,6.64530588,2515.4,2515.3,0.79469]
[1749311227536,0.79469,2515.3,2515.2,2.01006184]
[1749311227743,0.00596184,2515.7,2515.6,0.7946]
[1749311228136,0.00596184,2515.7,2515.6,2.1601]
[1749311228335,0.00596184,2515.7,2515.6,7.1601]
[1749311229945,0.00596184,2515.7,2515.6,2.1601]
[1749311238647,4.679,2516.3,2516.2,0.79441]
[1749311238953,4.679,2516.3,2516.2,4.00221]
[1749311239452,4.679,2516.6,2516.5,0.79431]
[1749311239654,5.8583725,2516.6,2516.5,0.79431]
[1749311240247,6.6526525,2516.6,2516.5,0.79431]
[1749311240747,6.6526525,2516.6,2516.5,4.00211]
[1749311241753,5.8583725,2516.6,2516.5,4.00211]
[1749311241958,5.47328,2516.6,2516.5,4.00211]
[1749311242850,5.47328,2516.6,2516.5,3.2078]
[1749311243043,6.65167308,2516.6,2516.5,3.2078]
[1749311243556,5.47328,2516.6,2516.5,4.00211]
[1749311244450,0.79428,2516.6,2516.5,4.00211]
[1749311244756,5.47819184,2516.8,2516.7,0.79425]
[1749311244954,6.65728298,2516.8,2516.7,0.79425]
[1749311245853,0.79426,2516.7,2516.6,0.79426]
[1749311247459,0.79428,2516.6,2516.5,4.00804184]
[1749311248958,0.79428,2516.6,2516.5,3.21376184]
[1749311249159,0.79428,2516.6,2516.5,4.00807184]
[1749311249862,0.79427,2516.7,2516.6,0.79428]
[1749311250762,5.47819184,2516.8,2516.7,0.79425]
[1749311250962,6.65655061,2516.8,2516.7,0.79425]
[1749311251260,1.18432061,2516.8,2516.7,0.79425]
[1749311251466,0.00596184,2516.8,2516.7,0.79425]
[1749311255464,0.80018184,2516.8,2516.7,0.86316172]
[1749311256070,2.05768184,2516.8,2516.7,0.86316172]
[1749311256272,1.26346184,2516.8,2516.7,0.86316172]
[1749311257173,0.00596184,2516.8,2516.7,0.86316172]
[1749311258077,1.84e-06,2516.8,2516.7,0.86316172]
[1749311258569,1.84e-06,2516.8,2516.7,5.86316172]
[1749311258765,1.84e-06,2516.8,2516.7,6.53856172]
[1749311259168,1.84e-06,2516.8,2516.7,6.85218589]
[1749311259376,1.84e-06,2516.8,2516.7,6.53856172]
[1749311260871,1.84e-06,2516.8,2516.7,6.86305735]
[1749311263478,0.6763,2517.8,2517.7,0.79393]
[1749311263677,0.6763,2517.8,2517.7,4.00173]
[1749311265772,0.6731,2517.9,2517.8,0.7939]
[1749311266278,0.00596184,2518.0,2517.9,0.79387]
[1749311266979,0.00596184,2518.0,2517.9,1.43597]
[1749311269582,0.00596184,2518.0,2517.9,2.07997]
[1749311270276,0.6622,2518.5,2518.4,0.79371]
[1749311271184,4.668,2518.6,2518.5,0.79368]
[1749311272082,6.77634,2518.7,2518.5,0.79368]
[1749311272282,2.10834,2518.7,2518.5,0.79368]
[1749311272488,1.3147,2518.6,2518.5,0.79368]
[1749311274985,2.10835,2518.6,2518.5,0.79368]
[1749311276187,1.3147,2518.6,2518.3,3.21376184]
[1749311276383,2.86489,2518.5,2518.3,3.21376184]
[1749311276584,2.0712,2518.5,2518.4,0.79371]
[1749311278696,2.86488,2518.5,2518.4,0.79371]
[1749311278992,0.79371,2518.4,2518.3,0.79969184]
[1749311279292,2.09181,2518.4,2518.3,0.00596184]
[1749311279685,1.2981,2518.4,2518.3,0.00596184]
[1749311279887,1.2981,2518.4,2518.3,0.79970184]
[1749311280095,2.09181,2518.4,2518.3,0.79970184]
[1749311280289,7.09181,2518.4,2518.3,0.00596184]
[1749311280587,2.09181,2518.4,2518.3,0.00596184]
[1749311281693,2.09181,2518.4,2518.3,0.79970184]
[1749311281892,1.2981,2518.4,2518.3,0.79970184]
[1749311282088,5.9651,2518.4,2518.3,0.79970184]
[1749311282694,6.75881,2518.4,2518.3,0.79970184]
[1749311285593,5.9651,2518.4,2518.3,0.79970184]
[1749311285993,5.9651,2518.4,2518.3,0.86861356]
[1749311286489,6.75881,2518.4,2518.3,0.86861356]
[1749311288392,7.94173898,2518.4,2518.3,0.86861356]
[1749311288592,6.75881,2518.4,2518.3,0.86861356]
[1749311288995,7.94152415,2518.4,2518.3,0.07487356]
[1749311290395,7.94152415,2518.4,2518.3,0.86861356]
[1749311290707,7.14781415,2518.4,2518.3,0.86861356]
[1749311291091,1.18271415,2518.4,2518.3,0.86861356]
[1749311291394,1.18271415,2518.4,2518.3,1.52361356]
[1749311291992,1.97642415,2518.4,2518.3,1.52361356]
[1749311292205,1.18271415,2518.4,2518.3,1.52361356]
[1749311292400,5.3424,2518.5,2518.3,1.52361356]
[1749311292698,6.13608,2518.5,2518.4,0.79371]
[1749311292897,7.32134195,2518.5,2518.4,0.79371]
[1749311293097,2.65434195,2518.5,2518.4,0.79371]
[1749311293798,1.18526195,2518.5,2518.4,0.79371]
[1749311293995,1.18526195,2518.5,2518.4,2.70841]
[1749311294201,4.67296184,2518.8,2518.7,0.79362]
[1749311294405,5.85907184,2518.8,2518.7,0.79362]
[1749311295806,1.19207184,2518.8,2518.7,0.79362]
[1749311296598,1.19207184,2518.8,2518.6,0.79364]
[1749311296804,1.97974,2518.7,2518.6,0.79364]
[1749311297407,1.18611,2518.7,2518.6,0.79364]
[1749311299108,1.97973,2518.7,2518.6,0.79364]
[1749311299309,0.79365,2518.6,2518.5,4.00145]
[1749311299509,1.97976,2518.6,2518.5,4.00145]
[1749311299704,0.79371,2518.5,2518.4,0.7937]
[1749311300107,2.74217,2518.6,2518.5,0.79368]
[1749311300407,3.92792719,2518.6,2518.5,0.79368]
[1749311301906,1.86725719,2518.6,2518.5,0.79368]
[1749311302605,2.66090719,2518.6,2518.5,0.79368]
[1749311303212,1.18575719,2518.6,2518.5,4.00148]
[1749311303511,0.00596184,2518.8,2518.7,0.79362]
[1749311303702,1.19148422,2518.8,2518.7,0.79362]
[1749311304109,0.00596184,2518.8,2518.7,0.79362]
[1749311304304,1.19132159,2518.8,2518.7,0.79362]
[1749311305703,0.00596184,2518.8,2518.7,0.79362]
[1749311306011,0.00596184,2518.8,2518.7,2.11502]
[1749311306511,24.022,2519.4,2519.3,0.79343]
[1749311306709,29.87264728,2519.4,2519.3,0.79343]
[1749311306907,1.18464728,2519.4,2519.3,0.79343]
[1749311307907,1.97804728,2519.4,2519.3,0.79343]
[1749311309712,1.18464728,2519.4,2519.3,0.79343]
[1749311309911,0.00596184,2519.6,2519.5,0.79337]
[1749311310210,1.98378647,2519.6,2519.5,0.79337]
[1749311310505,0.79343,2519.3,2519.2,0.6802]
[1749311310701,0.79346,2519.2,2519.1,4.00128]
[1749311310902,4.665,2519.2,2518.3,3.21376184]
[1749311311106,3.2078,2518.9,2518.4,0.6837]
[1749311311303,3.2078,2518.9,2518.8,0.79359]
[1749311312608,6.09814,2519.0,2518.9,0.79356]
[1749311313113,5.3046,2519.0,2518.9,0.79356]
[1749311313307,4.665,2519.0,2518.9,0.79356]
[1749311313608,0.6577,2519.1,2519.0,0.79352]
[1749311313914,4.665,2519.1,2519.0,0.79352]
[1749311314216,4.665,2519.2,2519.1,0.79349]
[1749311314415,4.665,2519.3,2519.2,0.79346]
[1749311315915,5.9398,2519.5,2519.4,0.7934]
[1749311316116,7.91494896,2519.5,2519.4,0.7934]
[1749311316309,7.12157896,2519.5,2519.4,0.7934]
[1749311316705,7.91494896,2519.5,2519.4,0.7934]
[1749311317411,7.12157896,2519.5,2519.4,0.7934]
[1749311317811,1.2748,2519.5,2519.4,0.7934]
[1749311319017,1.2748,2519.5,2519.3,0.7934]
[1749311319208,0.79341,2519.4,2519.3,0.7934]
[1749311319523,3.41989,2519.5,2519.4,0.7934]
[1749311319714,4.6015417,2519.5,2519.4,0.7934]
[1749311320920,0.79343,2519.3,2519.2,0.79343]
[1749311321321,0.79342,2519.4,2519.3,0.79342]
[1749311321521,2.17322,2519.4,2519.3,0.79342]
[1749311322125,1.3798,2519.4,2519.3,0.79342]
[1749311322421,0.7934,2519.4,2519.3,0.79342]
[1749311326624,3.25221872,2519.4,2519.3,0.79342]
[1749311327529,3.25221872,2519.4,2518.9,3.8728]
[1749311327530,4.44234872,2519.4,2518.9,3.8728]
[1749311327722,3.2078,2519.5,2519.4,0.79337]
[1749311328026,0.79930184,2519.6,2519.5,0.79337]
[1749311328228,0.00596184,2519.6,2519.5,0.79337]
[1749311329226,4.67896184,2519.6,2519.5,0.79337]
[1749311329817,5.85964613,2519.6,2519.5,0.79337]
[1749311330221,1.18664613,2519.6,2519.5,0.79337]
[1749311330428,5.85964613,2519.6,2519.5,0.79337]
[1749311330826,6.65297613,2519.6,2519.5,0.79337]
[1749311331023,5.85964613,2519.6,2519.5,0.79337]
[1749311331429,4.67896184,2519.6,2519.5,0.79337]
[1749311332326,0.00596184,2519.6,2519.5,0.79337]
[1749311334839,0.00596184,2519.6,2519.5,1.46767]
[1749311335535,0.00596184,2519.6,2519.5,4.67547]
[1749311339640,0.00596184,2519.6,2519.5,5.97817]
[1749311345248,0.00596184,2519.6,2519.5,2.77037]
[1749311349253,0.00596184,2519.6,2519.5,1.46767]
[1749311349453,0.00596184,2519.6,2519.5,0.79337]
[1749311349652,0.69196184,2519.6,2519.5,0.79337]
[1749311352345,0.00596184,2519.6,2519.5,0.79337]
[1749311357252,0.7934,2519.4,2519.3,0.79342]
[1749311357550,0.79343,2519.3,2519.2,0.79344]
[1749311357748,3.267997,2519.3,2519.2,0.79344]
[1749311357949,2.474567,2519.3,2519.2,0.79344]
[1749311359552,2.474567,2519.3,2518.8,2.61895]
[1749311359851,1.2946,2519.2,2518.8,2.61895]
[1749311360048,1.2946,2519.2,2519.1,0.79349]
[1749311363650,2.08806,2519.2,2519.1,0.79349]
[1749311363857,1.2946,2519.2,2519.1,0.79349]
[1749311365154,2.47489372,2519.2,2519.1,0.79349]
[1749311365561,1.2946,2519.2,2519.1,0.79349]
[1749311366555,2.08806,2519.2,2519.1,0.79349]
[1749311366755,1.2946,2519.2,2519.1,0.79349]
[1749311368860,2.08806,2519.2,2519.1,0.79349]
[1749311369060,1.2946,2519.2,2519.1,0.79349]
[1749311369362,2.08806,2519.2,2519.1,0.79349]
[1749311370163,1.2946,2519.2,2519.1,0.79349]
[1749311372163,1.2946,2519.2,2518.8,0.635]
[1749311372360,0.6644,2519.1,2519.0,0.79352]
[1749311378865,1.45789,2519.1,2519.0,0.79352]
[1749311380771,1.2946,2519.2,2518.8,0.635]
[1749311380772,0.79348,2519.2,2519.1,0.79349]
[1749311381067,4.672,2519.4,2519.2,0.79343]
[1749311381371,0.79347,2519.2,2519.1,0.06891172]
[1749311381765,1.97275184,2519.2,2519.1,0.06891172]
[1749311382267,0.79349,2519.1,2519.0,0.79352]
[1749311383071,0.79352,2519.0,2518.9,2.15873]
[1749311383265,3.2078,2519.0,2518.6,3.2078]
[1749311383468,0.659,2518.9,2518.6,3.8524]
[1749311383668,0.659,2518.9,2518.8,0.79359]
[1749311383869,2.13541,2519.1,2519.0,0.79352]
[1749311384069,8.6456852,2519.1,2518.9,0.79353]
[1749311384369,1.9727952,2519.0,2518.9,0.79353]
[1749311384671,1.9727952,2519.0,2518.6,3.8524]
[1749311384868,0.79352,2519.0,2518.8,0.79357]
[1749311385061,0.79356,2518.9,2518.6,5.1554]
[1749311385267,0.79356,2518.9,2518.8,0.79359]
[1749311385671,1.97361316,2518.9,2518.8,0.79359]
[1749311386173,1.18005316,2518.9,2518.8,0.79359]
[1749311386374,1.97361316,2518.9,2518.8,0.79359]
[1749311387275,1.97361316,2518.9,2518.6,5.1554]
[1749311387276,1.18005316,2518.9,2518.6,3.8524]
[1749311387573,0.7936,2518.8,2518.7,0.79361]
[1749311388072,3.2078,2519.0,2518.9,0.79356]
[1749311388266,4.38851689,2519.0,2518.9,0.79356]
[1749311388670,9.05351689,2519.0,2518.9,0.79356]
[1749311388870,9.84703689,2519.0,2518.9,0.79356]
[1749311389973,9.05351689,2519.0,2518.9,0.79356]
[1749311391076,5.84571689,2519.0,2518.9,0.79356]
[1749311391470,6.63923689,2519.0,2518.9,0.79356]
[1749311392164,6.63923689,2519.0,2518.8,0.06891172]
[1749311392370,1.97427689,2518.9,2518.8,0.06891172]
[1749311392774,5.18207689,2518.9,2518.8,0.06891172]
[1749311392971,6.50167689,2518.9,2518.8,0.06891172]
[1749311395365,11.50167689,2518.9,2518.8,1e-08]
[1749311397777,0.79365,2518.6,2518.5,0.79366]
[1749311397972,0.79368,2518.5,2518.4,1.4759]
[1749311398277,0.79371,2518.4,2518.3,0.00596184]
[1749311398880,1.97281675,2518.4,2518.3,0.00596184]
[1749311400372,3.23821675,2518.4,2518.3,0.00596184]
[1749311401579,1.97281675,2518.4,2518.3,0.79970184]
[1749311402680,1.97125027,2518.4,2518.3,0.79970184]
[1749311403079,0.79371,2518.4,2518.3,0.79970184]
[1749311403379,5.45971,2518.4,2518.3,0.79970184]
[1749311404080,5.45971,2518.4,2518.3,0.00596184]
[1749311405380,5.45971,2518.4,2518.3,0.79970184]
[1749311405575,0.79371,2518.4,2518.3,0.79970184]
[1749311405784,5.45971,2518.4,2518.3,0.79970184]
[1749311406782,5.45971,2518.4,2518.3,0.86861356]
[1749311407679,4.666,2518.4,2518.3,0.86861356]
[1749311408484,5.45971,2518.4,2518.3,0.86861356]
[1749311409382,5.45971,2518.4,2518.3,0.07487356]
[1749311411584,6.63712682,2518.4,2518.3,0.07487356]
[1749311413686,6.63737725,2518.4,2518.3,0.07487356]
[1749311414485,0.79387,2517.9,2517.8,0.6527]
[1749311414785,0.79387,2517.9,2517.4,0.6711]
[1749311414786,0.794,2517.5,2517.4,0.6711]
[1749311415288,0.79403,2517.4,2517.3,0.6527]
[1749311417194,3.21376184,2517.6,2517.3,0.6527]
[1749311417496,0.00596184,2517.6,2517.5,0.794]
[1749311417793,0.00596184,2517.6,2517.5,7.1536]
[1749311418184,0.79383,2518.1,2517.9,0.79385]
[1749311418391,0.79383,2518.1,2518.0,2.0299]
[1749311418591,1.96975055,2518.1,2518.0,2.0299]
[1749311418890,0.79383,2518.1,2518.0,2.0299]
[1749311419390,4.00163,2518.1,2518.0,0.6703]
[1749311419590,0.79396,2517.7,2517.6,0.79397]
[1749311419991,0.79396,2517.7,2517.6,1.3147]
[1749311420488,0.79396,2517.7,2517.6,2.10867]
[1749311421096,0.79392,2517.8,2517.6,2.10865]
[1749311421396,0.79392,2517.8,2517.7,0.6738]
[1749311424004,4.00172,2517.8,2517.7,0.6738]
[1749311424401,8.66872,2517.8,2517.7,0.6738]
[1749311424799,0.79397,2517.6,2517.5,0.64]
[1749311425105,7.8748,2517.8,2517.4,1.46612]
[1749311425296,1.17613033,2517.7,2517.4,1.46612]
[1749311425605,9.1923,2517.8,2517.4,1.46612]
[1749311425903,0.794,2517.5,2517.4,1.46612]
[1749311426906,0.794,2517.5,2517.4,0.6721]
[1749311428204,7.8748,2517.8,2517.7,0.79393]
[1749311428510,3.2078,2517.8,2517.7,0.79393]
[1749311429102,4.0017,2517.8,2517.7,0.79393]
[1749311430911,0.79395,2517.7,2517.6,0.79395]
[1749311431411,4.00173,2517.8,2517.5,1.373]
[1749311431709,4.00173,2517.8,2517.7,0.79393]
[1749311434619,0.79395,2517.7,2517.6,0.79395]
[1749311434915,4.00171,2517.8,2517.7,0.79393]
[1749311436011,4.00171,2517.8,2517.5,1.373]
[1749311436012,0.79397,2517.7,2517.5,1.373]
[1749311436207,0.79394,2517.7,2517.5,1.373]
[1749311436812,4.667,2517.9,2517.5,1.373]
[1749311437116,0.79393,2517.7,2517.5,1.373]
[1749311438117,0.79397,2517.6,2517.5,1.373]
[1749311440326,0.794,2517.5,2517.4,3.8799]
[1749311440716,0.79406,2517.3,2517.2,0.6663]
[1749311441521,0.79409,2517.2,2517.1,0.00596184]
[1749311447226,4.00189,2517.2,2517.1,0.00596184]
[1749311447727,0.79425,2516.7,2516.6,0.679]
[1749311448529,1.47515,2516.7,2516.6,0.679]
[1749311449134,0.79431,2516.5,2516.4,0.00596184]
[1749311449427,4.00211,2516.5,2516.4,0.00596184]
[1749311449833,5.33701,2516.5,2516.4,0.00596184]
[1749311451328,0.79431,2516.5,2516.4,0.00596184]
[1749311452037,0.79431,2516.5,2516.4,0.69306184]
[1749311452219,0.79431,2516.5,2516.4,2.01796184]
[1749311452822,4.00211,2516.5,2516.4,0.00596184]
[1749311455733,8.67311,2516.5,2516.4,0.00596184]
[1749311456126,0.79431,2516.5,2516.4,0.00596184]
[1749311456428,5.46531,2516.5,2516.4,0.00596184]
[1749311459331,6.84221,2516.5,2516.4,0.00596184]
[1749311460434,4.671,2516.5,2516.4,0.00596184]
[1749311460636,5.46531,2516.5,2516.4,0.00596184]
[1749311461834,0.79431,2516.5,2516.4,0.80030184]
[1749311462035,3.2078,2516.6,2516.5,0.79431]
[1749311462233,0.79428,2516.6,2516.5,2.08361]
[1749311463236,0.79423,2516.8,2516.7,0.79423]
[1749311463942,6.13907184,2516.9,2516.7,0.79423]
[1749311464239,0.79422,2516.8,2516.7,0.79423]
[1749311464632,0.79422,2516.8,2516.6,0.79426]
[1749311464834,0.79422,2516.8,2516.7,0.79425]
[1749311466034,5.34486184,2516.9,2516.5,2.08358]
[1749311466234,5.34486184,2516.9,2516.5,1.2893]
[1749311466434,0.79426,2516.7,2516.6,0.79427]
[1749311467736,0.79426,2516.7,2516.5,1.2893]
[1749311467737,0.79425,2516.8,2516.7,0.79425]
[1749311468035,0.67386184,2516.9,2516.8,0.79422]
[1749311468242,5.47115184,2516.9,2516.8,0.79422]
[1749311469237,4.67696184,2516.9,2516.8,0.79422]
[1749311469440,0.00596184,2516.9,2516.8,0.79422]
[1749311480943,0.00596184,2516.9,2516.8,0.86313172]
[1749311481144,0.00596184,2516.9,2516.8,1.54603172]
[1749311481852,0.00596184,2516.9,2516.8,1.47712]
[1749311482840,0.80015184,2516.9,2516.8,0.75181172]
[1749311483047,0.80015184,2516.9,2516.8,0.06891172]
[1749311483637,0.80015184,2516.9,2516.8,0.86313172]
[1749311486646,0.00596184,2516.9,2516.8,0.86313172]
[1749311487050,0.67576184,2516.9,2516.8,0.86313172]
[1749311487649,1.32526184,2516.9,2516.8,0.86313172]
[1749311488147,2.11945184,2516.9,2516.8,0.86313172]
[1749311488347,14.34532548,2516.9,2516.8,1e-08]
[1749311495359,14.34213167,2516.9,2516.8,1e-08]
[1749311498851,9.34313167,2516.9,2516.8,1e-08]
[1749311500155,7.96783167,2516.9,2516.8,1e-08]
[1749311501154,3.29183167,2516.9,2516.8,1e-08]
[1749311501456,7.96783167,2516.9,2516.8,1e-08]
[1749311502961,7.29803167,2516.9,2516.8,1e-08]
[1749311503162,6.64853167,2516.9,2516.8,1e-08]
[1749311504056,0.80015184,2516.9,2516.8,0.79422001]
[1749311504254,0.80015184,2516.9,2516.8,2.18752001]
[1749311504459,0.80015184,2516.9,2516.8,1.39330001]
[1749311506561,0.80015184,2516.9,2516.8,1e-08]
[1749311509554,1.97280826,2516.9,2516.8,1e-08]
[1749311511563,1.97280826,2516.9,2516.8,0.79422001]
[1749311512863,1.97280826,2516.9,2516.8,2.18082001]
[1749311513661,1.97280826,2516.9,2516.8,1.38660001]
[1749311515465,1.97280826,2516.9,2516.8,2.18082001]